{"text_format":"1","workbook":"xlsx","n_sheets":1,"sheets":["AutoQuery"],"not_rendered":{"charts":0,"images":0,"macros":1,"external_links":0,"defined_names":0,"comments":0,"pivot_tables":0},"unopened":[],"bounds":{"document_bytes":16777216,"sheet_cells":100000,"rows_first":2000,"rows_last":500,"rows_between":2000,"halvings":0,"cell_chars":16384,"cell_head_chars":4096},"cells_cut":0,"cells_raw":0,"read":"whole","date_system":"1900"}

{"sheet":"AutoQuery","index":0,"n_rows":24,"n_cols":5,"rows_kept":24,"cut":false,"hidden":false,"merged":[[1,1,1,2]]}
["Search Terms","Wildcard (CONTAINS)","LABEL contains","Summary contains","Description (CONTAINS)"]
["Add your search terms, seperated in the same cell with a comma to auto-generate an \"OR\" query.","For multi-dimensional queries, hold command while selecting multiple cells in columns B to E. \nClick \"Insights search query\" button to auto-generate an \"AND\" query."]
["Search terms"]
["diversity, inclusion",{"$f":"\"((* CONTAINS \"\"\" & SUBSTITUTE(A4, \", \", \"\"\") OR (* CONTAINS \"\"\") & \"\"\"))\"","v":"((* CONTAINS \"diversity\") OR (* CONTAINS \"inclusion\"))"},{"$f":"\"((label CONTAINS \"\"\" & SUBSTITUTE(A4, \", \", \"\"\") OR (label CONTAINS \"\"\") & \"\"\"))\"","v":"((label CONTAINS \"diversity\") OR (label CONTAINS \"inclusion\"))"},{"$f":"\"((summary CONTAINS \"\"\" & SUBSTITUTE(A4, \", \", \"\"\") OR (summary CONTAINS \"\"\") & \"\"\"))\"","v":"((summary CONTAINS \"diversity\") OR (summary CONTAINS \"inclusion\"))"},{"$f":"\"((description CONTAINS \"\"\" & SUBSTITUTE(A4, \", \", \"\"\") OR (description CONTAINS \"\"\") & \"\"\"))\"","v":"((description CONTAINS \"diversity\") OR (description CONTAINS \"inclusion\"))"}]
["generation alpha, gen alpha",{"$f":"\"((* CONTAINS \"\"\" & SUBSTITUTE(A5, \", \", \"\"\") OR (* CONTAINS \"\"\") & \"\"\"))\"","v":"((* CONTAINS \"generation alpha\") OR (* CONTAINS \"gen alpha\"))"},{"$f":"\"((label CONTAINS \"\"\" & SUBSTITUTE(A5, \", \", \"\"\") OR (label CONTAINS \"\"\") & \"\"\"))\"","v":"((label CONTAINS \"generation alpha\") OR (label CONTAINS \"gen alpha\"))"},{"$f":"\"((summary CONTAINS \"\"\" & SUBSTITUTE(A5, \", \", \"\"\") OR (summary CONTAINS \"\"\") & \"\"\"))\"","v":"((summary CONTAINS \"generation alpha\") OR (summary CONTAINS \"gen alpha\"))"},{"$f":"\"((description CONTAINS \"\"\" & SUBSTITUTE(A5, \", \", \"\"\") OR (description CONTAINS \"\"\") & \"\"\"))\"","v":"((description CONTAINS \"generation alpha\") OR (description CONTAINS \"gen alpha\"))"}]
["globalization, globalisation","((* CONTAINS \"globalization\") OR (* CONTAINS \"globalisation\"))","((label CONTAINS \"globalization\") OR (label CONTAINS \"globalisation\"))","((summary CONTAINS \"globalization\") OR (summary CONTAINS \"globalisation\"))","((description CONTAINS \"globalization\") OR (description CONTAINS \"globalisation\"))"]
["generative AI, genAI","((* CONTAINS \"generative AI\") OR (* CONTAINS \"genAI\"))","((label CONTAINS \"generative AI\") OR (label CONTAINS \"genAI\"))","((summary CONTAINS \"generative AI\") OR (summary CONTAINS \"genAI\"))","((description CONTAINS \"generative AI\") OR (description CONTAINS \"genAI\"))"]
["investment, venture, funding","((* CONTAINS \"investment\") OR (* CONTAINS \"venture\") OR (* CONTAINS \"funding\"))","((label CONTAINS \"investment\") OR (label CONTAINS \"venture\") OR (label CONTAINS \"funding\"))","((summary CONTAINS \"investment\") OR (summary CONTAINS \"venture\") OR (summary CONTAINS \"funding\"))","((description CONTAINS \"investment\") OR (description CONTAINS \"venture\") OR (description CONTAINS \"funding\"))"]
[null,"((* CONTAINS \"\"))","((label CONTAINS \"\"))","((summary CONTAINS \"\"))","((description CONTAINS \"\"))"]
[null,"((* CONTAINS \"\"))","((label CONTAINS \"\"))","((summary CONTAINS \"\"))","((description CONTAINS \"\"))"]
[null,"((* CONTAINS \"\"))","((label CONTAINS \"\"))","((summary CONTAINS \"\"))","((description CONTAINS \"\"))"]
[null,"((* CONTAINS \"\"))","((label CONTAINS \"\"))","((summary CONTAINS \"\"))","((description CONTAINS \"\"))"]
[null,"((* CONTAINS \"\"))","((label CONTAINS \"\"))","((summary CONTAINS \"\"))","((description CONTAINS \"\"))"]
[null,{"$f":"\"((* CONTAINS \"\"\" & SUBSTITUTE(A14, \", \", \"\"\") OR (* CONTAINS \"\"\") & \"\"\"))\"","v":"((* CONTAINS \"\"))"},"((label CONTAINS \"\"))","((summary CONTAINS \"\"))","((description CONTAINS \"\"))"]
[null,"((* CONTAINS \"\"))","((label CONTAINS \"\"))","((summary CONTAINS \"\"))","((description CONTAINS \"\"))"]
[null,"((* CONTAINS \"\"))","((label CONTAINS \"\"))","((summary CONTAINS \"\"))","((description CONTAINS \"\"))"]
[null,"((* CONTAINS \"\"))","((label CONTAINS \"\"))","((summary CONTAINS \"\"))","((description CONTAINS \"\"))"]
[null,"((* CONTAINS \"\"))","((label CONTAINS \"\"))","((summary CONTAINS \"\"))","((description CONTAINS \"\"))"]
[null,"((* CONTAINS \"\"))","((label CONTAINS \"\"))","((summary CONTAINS \"\"))","((description CONTAINS \"\"))"]
[null,"((* CONTAINS \"\"))","((label CONTAINS \"\"))","((summary CONTAINS \"\"))","((description CONTAINS \"\"))"]
[null,"((* CONTAINS \"\"))","((label CONTAINS \"\"))","((summary CONTAINS \"\"))","((description CONTAINS \"\"))"]
[null,{"$f":"\"((* CONTAINS \"\"\" & SUBSTITUTE(A22, \", \", \"\"\") OR (* CONTAINS \"\"\") & \"\"\"))\"","v":"((* CONTAINS \"\"))"},"((label CONTAINS \"\"))","((summary CONTAINS \"\"))","((description CONTAINS \"\"))"]
[null,"((* CONTAINS \"\"))","((label CONTAINS \"\"))","((summary CONTAINS \"\"))","((description CONTAINS \"\"))"]
[null,"((* CONTAINS \"\"))","((label CONTAINS \"\"))","((summary CONTAINS \"\"))","((description CONTAINS \"\"))"]